fUST/lending_fUST_20250422
["ID","MTS","AMOUNT","RATE_DAILY","PERIOD"]
[358600106,1745299840302,-500.0,0.00021917,2]
[358600107,1745299840312,-745.15,0.00021917,2]
[358600108,1745299840322,-500.0,0.00021917,2]
[358600109,1745299840332,-500.0,0.00021917,2]
[358600110,1745299840342,-500.0,0.00021917,2]
[358600111,1745299840351,-504.88720569,0.00021917,2]
[358600112,1745299840361,-500.0,0.00021917,2]
[358600113,1745299840370,-502.60548878,0.00021917,2]
[358600114,1745299840380,-500.0,0.00021917,2]
[358600115,1745299840389,-500.0,0.00021917,2]
[358600116,1745299840398,-509.74803911,0.00021917,2]
[358600117,1745299840408,-500.0,0.00021917,2]
[358600118,1745299840418,-500.0,0.00021917,2]
[358600119,1745299840432,-500.0,0.00021917,2]
[358600120,1745299840441,-500.0,0.00021917,2]
[358600121,1745299840453,-186.46364894,0.00021917,2]
[358600122,1745299840463,-500.0,0.00021917,2]
[358600123,1745299840473,-500.0,0.00021917,2]
[358600124,1745299840485,-500.0,0.00021917,2]
[358600125,1745299840497,-500.0,0.00021917,2]
[358600126,1745299840508,-500.0,0.00021917,2]
[358600127,1745299840518,-504.96047136,0.00021917,2]
[358600128,1745299840527,-510.75952544,0.00021917,2]
[358600129,1745299840536,-500.0,0.00021917,2]
[358600130,1745299840545,-594.93,0.00021917,2]
[358600131,1745299840555,-500.0,0.00021917,2]
[358600132,1745299840564,-164.77549434,0.00021917,2]
[358600133,1745299840574,-548.04,0.00021917,2]
[358600134,1745299840583,-500.0,0.00021917,2]
[358600135,1745299840593,-507.01200798,0.00021917,2]
[358600136,1745299840602,-500.0,0.00021917,2]
[358600137,1745299840612,-500.0,0.00021917,2]
[358600138,1745299840724,-500.0,0.00021917,2]
[358600139,1745299840734,-402.96631046,0.00021917,2]
[358600140,1745299840743,-500.0,0.00021917,2]
[358600141,1745299840752,-500.0,0.00021917,2]
[358600142,1745299840761,-500.0,0.00021917,2]
[358600143,1745299840770,-610.45,0.00021917,2]
[358600144,1745299840779,-495.89962436,0.00021917,2]
[358600145,1745299840789,-501.74325227,0.00021917,2]
[358600146,1745299840798,-500.0,0.00021917,2]
[358600147,1745299840807,-546.98,0.00021917,2]
[358600148,1745299840816,-500.0,0.00021917,2]
[358600149,1745299840825,-500.0,0.00021917,2]
[358600150,1745299840834,-500.0,0.00021917,2]
[358600151,1745299840843,-500.0,0.00021917,2]
[358600152,1745299840853,-509.47946963,0.00021917,2]
[358600153,1745299840862,-500.0,0.00021917,2]
[358600154,1745299840871,-500.0,0.00021917,2]
[358600155,1745299840880,-502.10324631,0.00021917,2]
[358600156,1745299840889,-500.0,0.00021917,2]
[358600157,1745299840898,-500.0,0.00021917,2]
[358600158,1745299840907,-262.01414729,0.00021917,2]
[358600159,1745299840916,-500.0,0.00021917,2]
[358600160,1745299840925,-500.0,0.00021917,2]
[358600161,1745299840935,-500.0,0.00021917,2]
[358600162,1745299840944,-500.0,0.00021917,2]
[358600163,1745299840953,-500.0,0.00021917,2]
[358600164,1745299840962,-500.0,0.00021917,2]
[358600165,1745299840971,-500.0,0.00021917,2]
[358600166,1745299840980,-500.0,0.00021917,2]
[358600167,1745299840989,-500.0,0.00021917,2]
[358600168,1745299840998,-500.0,0.00021917,2]
[358600169,1745299841007,-531.02945778,0.00021917,2]
[358600170,1745299841017,-500.0,0.00021917,2]
[358600171,1745299841026,-503.99329265,0.00021917,2]
[358600172,1745299841035,-500.0,0.00021917,2]
[358600173,1745299841045,-501.14097144,0.00021917,2]
[358600174,1745299841054,-528.8990711,0.00021917,2]
[358600175,1745299841063,-500.0,0.00021917,2]
[358600176,1745299841072,-500.0,0.00021917,2]
[358600177,1745299841082,-500.0,0.00021917,2]
[358600178,1745299841091,-500.0,0.00021917,2]
[358600179,1745299841100,-500.0,0.00021917,2]
[358600180,1745299841109,-500.0,0.00021917,2]
[358600181,1745299841118,-502.73274022,0.00021917,2]
[358600182,1745299841128,-500.0,0.00021917,2]
[358600183,1745299841137,-500.0,0.00021917,2]
[358600184,1745299841146,-514.79736689,0.00021917,2]
[358600185,1745299841154,-500.62730024,0.00021917,2]
[358600186,1745299841164,-500.0,0.00021917,2]
[358600187,1745299841173,-500.0,0.00021917,2]
[358600188,1745299841183,-500.0,0.00021917,2]
[358600189,1745299841194,-500.0,0.00021917,2]
[358600190,1745299841203,-500.0,0.00021917,2]
[358600191,1745299841213,-500.0,0.00021917,2]
[358600192,1745299841222,-500.0,0.00021917,2]
[358600193,1745299841232,-500.0,0.00021917,2]
[358600194,1745299841242,-500.0,0.00021917,2]
[358600195,1745299841251,-500.0,0.00021917,2]
[358600196,1745299841261,-500.0,0.00021917,2]
[358600197,1745299841271,-505.90572447,0.00021917,2]
[358600198,1745299841280,-500.0,0.00021917,2]
[358600199,1745299841290,-500.0,0.00021917,2]
[358600200,1745299841299,-413.0823599,0.00021917,2]
[358600201,1745299841309,-500.0,0.00021917,2]
[358600202,1745299841319,-500.0,0.00021917,2]
[358600203,1745299841328,-500.0,0.00021917,2]
[358600204,1745299841338,-500.0,0.00021917,2]
[358600205,1745299841348,-500.0,0.00021917,2]
[358600206,1745299841357,-500.99994773,0.00021917,2]
[358600207,1745299841367,-500.0,0.00021917,2]
[358600208,1745299841376,-500.0,0.00021917,2]
[358600209,1745299841385,-500.0,0.00021917,2]
[358600210,1745299841395,-500.0,0.00021917,2]
[358600211,1745299841404,-500.0,0.00021917,2]
[358600212,1745299841414,-500.0,0.00021917,2]
[358600213,1745299841426,-500.0,0.00021917,2]
[358600214,1745299841436,-513.83430342,0.00021917,2]
[358600215,1745299841446,-500.0,0.00021917,2]
[358600216,1745299841456,-500.0,0.00021917,2]
[358600217,1745299841467,-500.0,0.00021917,2]
[358600218,1745299841477,-500.0,0.00021917,2]
[358600219,1745299841487,-500.0,0.00021917,2]
[358600220,1745299841499,-576.61,0.00021917,2]
[358600221,1745299841508,-771.57,0.00021917,2]
[358600222,1745299841518,-500.50826648,0.00021917,2]
[358600223,1745299841528,-500.0,0.00021917,2]
[358600224,1745299841538,-500.0,0.00021917,2]
[358600225,1745299841547,-500.0,0.00021917,2]
[358600226,1745299841556,-503.47511865,0.00021917,2]
[358600227,1745299841566,-564.09303456,0.00021917,2]
[358600228,1745299841575,-500.0,0.00021917,2]
[358600229,1745299841585,-500.0,0.00021917,2]
[358600230,1745299841594,-500.0,0.00021917,2]
[358600231,1745299841603,-500.0,0.00021917,2]
[358600232,1745299841614,-500.0,0.00021917,2]
[358600233,1745299841623,-500.0,0.00021917,2]
[358600234,1745299841632,-500.0,0.00021917,2]
[358600235,1745299841641,-500.0,0.00021917,2]
[358600236,1745299841650,-500.0,0.00021917,2]
[358600237,1745299841659,-500.0,0.00021917,2]
[358600238,1745299841669,-500.0,0.00021917,2]
[358600239,1745299841678,-504.124229,0.00021917,2]
[358600240,1745299841688,-500.0,0.00021917,2]
[358600241,1745299841698,-500.0,0.00021917,2]
[358600242,1745299841707,-500.0,0.00021917,2]
[358600243,1745299841717,-1468.47,0.00021917,2]
[358600244,1745299841726,-500.0,0.00021917,2]
[358600245,1745299841736,-500.0,0.00021917,2]
[358600246,1745299841745,-500.0,0.00021917,2]
[358600247,1745299841755,-500.0,0.00021917,2]
[358600248,1745299841764,-505.30203898,0.00021917,2]
[358600249,1745299841774,-500.0,0.00021917,2]
[358600250,1745299841783,-713.13,0.00021917,2]
[358600251,1745299841793,-506.93384636,0.00021917,2]
[358600252,1745299841803,-500.0,0.00021917,2]
[358600253,1745299841813,-501.59673302,0.00021917,2]
[358600254,1745299841822,-500.0,0.00021917,2]
[358600255,1745299841832,-500.0,0.00021917,2]
[358600256,1745299841842,-1321.02,0.00021917,2]
[358600257,1745299841852,-500.0,0.00021917,2]
[358600258,1745299841862,-504.30444375,0.00021917,2]
[358600259,1745299841873,-500.0,0.00021917,2]
[358600260,1745299841882,-505.78892999,0.00021917,2]
[358600261,1745299841893,-500.0,0.00021917,2]
[358600262,1745299841903,-846.15,0.00021917,2]
[358600263,1745299841912,-500.0,0.00021917,2]
[358600264,1745299841922,-500.0,0.00021917,2]
[358600265,1745299841932,-405.72414452,0.00021917,2]
[358600266,1745299841942,-513.33903632,0.00021917,2]
[358600267,1745299841952,-500.0,0.00021917,2]
[358600268,1745299841961,-504.1054095,0.00021917,2]
[358600269,1745299841971,-500.0,0.00021917,2]
[358600270,1745299841981,-500.0,0.00021917,2]
[358600271,1745299841991,-500.0,0.00021917,2]
[358600272,1745299842001,-500.0,0.00021917,2]
[358600273,1745299842010,-500.0,0.00021917,2]
[358600274,1745299842020,-500.0,0.00021917,2]
[358600275,1745299842030,-500.0,0.00021917,2]
[358600276,1745299842039,-500.0,0.00021917,2]
[358600277,1745299842049,-500.0,0.00021917,2]
[358600278,1745299842058,-289.89809909,0.00021917,2]
[358600279,1745299842068,-505.62941426,0.00021917,2]
[358600280,1745299842077,-500.0,0.00021917,2]
[358600281,1745299842087,-500.0,0.00021917,2]
[358600282,1745299842096,-1061.61,0.00021917,2]
[358600283,1745299842105,-500.0,0.00021917,2]
[358600284,1745299842114,-1000.0,0.00021917,2]
[358600285,1745299842123,-562.32041676,0.00021917,2]
[358600286,1745299842133,-500.0,0.00021917,2]
[358600287,1745299842142,-424.08955261,0.00021917,2]
[358600288,1745299842151,-500.0,0.00021917,2]
[358600289,1745299842161,-500.0,0.00021917,2]
[358600291,1745299842171,-500.0,0.00021917,2]
[358600293,1745299842179,-500.0,0.00021917,2]
[358600294,1745299842188,-501.42740333,0.00021917,2]
[358600295,1745299842198,-500.0,0.00021917,2]
[358600296,1745299842207,-501.17847287,0.00021917,2]
[358600297,1745299842217,-500.0,0.00021917,2]
[358600298,1745299842226,-500.0,0.00021917,2]
[358600299,1745299842311,-500.0,0.00021917,2]
[358600300,1745299842322,-500.0,0.00021917,2]
[358600301,1745299842332,-3688.67,0.00021917,2]
[358600302,1745299842342,-3688.67,0.00021917,2]
[358600303,1745299842351,-3688.67,0.00021917,2]
[358600305,1745299842361,-3688.67,0.00021917,2]
[358600308,1745299842371,-3688.67,0.00021917,2]
[358600309,1745299842381,-3688.67,0.00021917,2]
[358600311,1745299842391,-3688.67,0.00021917,2]
[358600312,1745299842401,-500.0,0.00021917,2]
[358600313,1745299842411,-3688.67,0.00021917,2]
[358600314,1745299842422,-3688.67,0.00021917,2]
[358600315,1745299842436,-500.0,0.00021917,2]
[358600317,1745299842446,-500.0,0.00021917,2]
[358600319,1745299842455,-500.0,0.00021917,2]
[358600321,1745299842464,-500.0,0.00021917,2]
[358600322,1745299842474,-500.0,0.00021917,2]
[358600323,1745299842484,-500.0,0.00021917,2]
[358600324,1745299842495,-500.0,0.00021917,2]
[358600325,1745299842506,-500.0,0.00021917,2]
[358600326,1745299842515,-500.0,0.00021917,2]
[358600327,1745299842525,-500.0,0.00021917,2]
[358600328,1745299842535,-504.72968403,0.00021917,2]
[358600329,1745299842544,-500.71100963,0.00021917,2]
[358600330,1745299842553,-500.0,0.00021917,2]
[358600331,1745299842563,-500.0,0.00021917,2]
[358600332,1745299842572,-500.0,0.00021917,2]
[358600333,1745299842582,-500.0,0.00021917,2]
[358600334,1745299842591,-5461.76,0.00021917,2]
[358600335,1745299842601,-500.0,0.00021917,2]
[358600336,1745299842610,-1045.27,0.00021917,2]
[358600337,1745299842619,-500.0,0.00021917,2]
[358600338,1745299842628,-500.0,0.00021917,2]
[358600339,1745299842637,-500.0,0.00021917,2]
[358600340,1745299842647,-500.0,0.00021917,2]
[358600341,1745299842656,-500.0,0.00021917,2]
[358600342,1745299842666,-500.0,0.00021917,2]
[358600343,1745299842675,-500.0,0.00021917,2]
[358600344,1745299842684,-500.0,0.00021917,2]
[358600345,1745299842693,-536.34,0.00021917,2]
[358600346,1745299842703,-664.19,0.00021917,2]
[358600347,1745299842713,-1784.45,0.00021917,2]
[358600348,1745299842722,-4556.92,0.00021917,2]
[358600349,1745299842731,-500.0,0.00021917,2]
[358600350,1745299842740,-500.0,0.00021917,2]
[358600351,1745299842750,-500.0,0.00021917,2]
[358600352,1745299842759,-504.87027715,0.00021917,2]
[358600353,1745299842768,-500.0,0.00021917,2]
[358600354,1745299842777,-500.0,0.00021917,2]
[358600355,1745299842787,-500.0,0.00021917,2]
[358600356,1745299842796,-500.0,0.00021917,2]
[358600357,1745299842806,-500.0,0.00021917,2]
[358600358,1745299842815,-500.0,0.00021917,2]
[358600359,1745299842824,-500.0,0.00021917,2]
[358600360,1745299842834,-500.0,0.00021917,2]
[358600361,1745299842843,-500.0,0.00021917,2]
[358600362,1745299842853,-500.0,0.00021917,2]
[358600363,1745299842863,-500.0,0.00021917,2]
[358600364,1745299842872,-500.0,0.00021917,2]
[358600365,1745299842881,-506.30378373,0.00021917,2]
[358600366,1745299842891,-505.64894293,0.00021917,2]
[358600367,1745299842900,-500.0,0.00021917,2]
[358600368,1745299842910,-500.0,0.00021917,2]
[358600369,1745299842920,-500.0,0.00021917,2]
[358600370,1745299842930,-500.0,0.00021917,2]
[358600371,1745299842939,-500.0,0.00021917,2]
[358600372,1745299842949,-500.0,0.00021917,2]
[358600373,1745299842959,-151.51901017,0.00021917,2]
[358600374,1745299842968,-602.41,0.00021917,2]
[358600375,1745299842978,-151.0,0.00021917,2]
[358600376,1745299842987,-3662.87,0.00021917,2]
[358600377,1745299842996,-500.0,0.00021917,2]
[358600378,1745299843005,-500.0,0.00021917,2]
[358600379,1745299843015,-6956.15,0.00021917,2]
[358600380,1745299843024,-752.83,0.00021917,2]
[358600381,1745299843033,-151.0,0.00021917,2]
[358600383,1745299843042,-500.0,0.00021917,2]
[358600385,1745299843051,-151.0,0.00021917,2]
[358600387,1745299843060,-500.0,0.00021917,2]
[358600388,1745299843069,-151.0,0.00021917,2]
[358600389,1745299843078,-166.79409285,0.00021917,2]
[358600390,1745299843087,-523.76809137,0.00021917,2]
[358600391,1745299843096,-500.0,0.00021917,2]
[358600392,1745299843104,-500.0,0.00021917,2]
[358600393,1745299843113,-506.34277989,0.00021917,2]
[358600394,1745299843122,-192.19065671,0.00021917,2]
[358600395,1745299843130,-500.0,0.00021917,2]
[358600396,1745299843139,-160.51690341,0.00021917,2]
[358600397,1745299843148,-500.0,0.00021917,2]
[358600398,1745299843158,-500.0,0.00021917,2]
[358600399,1745299843167,-154.69051424,0.00021917,2]
[358600400,1745299843176,-500.0,0.00021917,2]
[358600401,1745299843185,-151.0,0.00021917,2]
[358600402,1745299843194,-156.99040747,0.00021917,2]
[358600403,1745299843203,-500.0,0.00021917,2]
[358600404,1745299843212,-151.0,0.00021917,2]
[358600405,1745299843221,-500.0,0.00021917,2]
[358600406,1745299843231,-509.04495403,0.00021917,2]
[358600407,1745299843240,-1224.89,0.00021917,2]
[358600408,1745299843249,-502.04,0.00021917,2]
[358600409,1745299843259,-500.0,0.00021917,2]
[358600410,1745299843269,-508.76780697,0.00021917,2]
[358600411,1745299843279,-500.0,0.00021917,2]
[358600412,1745299843289,-504.13609335,0.00021917,2]
[358600413,1745299843298,-500.0,0.00021917,2]
[358600414,1745299843307,-500.38574003,0.00021917,2]
[358600415,1745299843317,-747.46,0.00021917,2]
[358600416,1745299843327,-500.0,0.00021917,2]
[358600417,1745299843337,-500.0,0.00021917,2]
[358600418,1745299843347,-500.0,0.00021917,2]
[358600419,1745299843356,-502.59432456,0.00021917,2]
[358600420,1745299843366,-500.65093928,0.00021917,2]
[358600421,1745299843376,-503.9293816,0.00021917,2]
[358600422,1745299843395,-541.53295048,0.00021917,2]
[358600423,1745299843405,-500.0,0.00021917,2]
[358600424,1745299843415,-500.0,0.00021917,2]
[358600425,1745299843427,-225.19588435,0.00021954,2]
[358600426,1745299843438,-3688.67,0.00021989,2]
[358600427,1745299843447,-3688.67,0.00021989,2]
[358600428,1745299843458,-3688.67,0.00021989,2]
[358600429,1745299843469,-225.19588435,0.00022091,2]
[358600430,1745299843480,-361.3287945,0.000221,2]
[358600431,1745299843489,-3688.67,0.0002219,2]
[358600432,1745299843501,-3688.67,0.0002219,2]
[358600433,1745299843512,-3688.67,0.0002219,2]
[358600434,1745299843521,-3688.67,0.0002219,2]
[358600435,1745299843531,-3688.67,0.0002219,2]
[358600436,1745299843540,-3688.67,0.0002219,2]
[358600437,1745299843550,-3688.67,0.0002219,2]
[358600438,1745299843560,-151.0,0.0002219,7]
[358600439,1745299843569,-160.0,0.0002219,2]
[358600440,1745299843579,-501.63325657,0.00022191,2]
[358600441,1745299843588,-500.0,0.00022191,2]
[358600442,1745299843598,-500.0,0.00022191,2]
[358600443,1745299843608,-500.0,0.00022191,2]
[358600444,1745299843617,-505.98973446,0.00022191,2]
[358600445,1745299843627,-665.41,0.00022191,2]
[358600446,1745299843637,-500.0,0.00022191,2]
[358600447,1745299843647,-500.0,0.00022191,2]
[358600448,1745299843656,-500.0,0.00022191,2]
[358600449,1745299843666,-229.05436689,0.00022191,2]
[358600450,1745299843675,-500.0,0.00022191,2]
[358600451,1745299843685,-500.0,0.00022191,2]
[358600452,1745299843695,-604.09367698,0.00022191,2]
[358600453,1745299843705,-649.86324214,0.00022191,2]
[358600454,1745299843714,-500.0,0.00022191,2]
[358600455,1745299843813,-500.0,0.00022191,2]
[358600456,1745299843831,-510.25232994,0.00022191,2]
[358600457,1745299843840,-505.79042895,0.00022191,2]
[358600458,1745299843849,-500.0,0.00022191,2]
[358600459,1745299843859,-500.0,0.00022191,2]
[358600460,1745299843868,-589.8,0.00022191,2]
[358600461,1745299843878,-500.0,0.00022191,2]
[358600462,1745299843887,-507.99607365,0.00022191,2]
[358600463,1745299843897,-500.0,0.00022191,2]
[358600464,1745299843906,-500.0,0.00022191,2]
[358600465,1745299843916,-503.24192904,0.00022191,2]
[358600466,1745299843925,-500.0,0.00022191,2]
[358600467,1745299843935,-500.0,0.00022191,2]
[358600468,1745299843944,-504.81195936,0.00022191,2]
[358600469,1745299843954,-500.0,0.00022191,2]
[358600470,1745299843964,-500.0,0.00022191,2]
[358600471,1745299843974,-501.45464113,0.00022191,2]
[358600472,1745299843983,-1000.0,0.00022191,2]
[358600473,1745299843993,-500.0,0.00022191,2]
[358600474,1745299844003,-303.02674512,0.00022191,2]
[358600475,1745299844012,-500.0,0.00022191,2]
[358600476,1745299844022,-500.0,0.00022191,2]
[358600477,1745299844032,-504.40342907,0.00022191,2]
[358600478,1745299844042,-500.0,0.00022191,2]
[358600479,1745299844051,-500.0,0.00022191,2]
[358600480,1745299844060,-500.0,0.00022191,2]
[358600481,1745299844071,-500.0,0.00022191,2]
[358600482,1745299844081,-509.14514543,0.00022191,2]
[358600483,1745299844090,-500.0,0.00022191,2]
[358600484,1745299844100,-500.0,0.00022191,2]
[358600485,1745299844110,-500.0,0.00022191,2]
[358600486,1745299844119,-637.68,0.00022191,2]
[358600487,1745299844128,-500.0,0.00022191,2]
[358600488,1745299844138,-500.0,0.00022191,2]
[358600489,1745299844148,-184.23695828,0.00022191,2]
[358600491,1745299844157,-500.0,0.00022191,2]
[358600492,1745299844168,-500.0,0.00022191,2]
[358600493,1745299844177,-500.0,0.00022191,2]
[358600494,1745299844186,-500.0,0.00022191,2]
[358600495,1745299844196,-502.6676158,0.00022191,2]
[358600496,1745299844205,-419.58069987,0.00022191,2]
[358600497,1745299844215,-500.2132619,0.00022191,2]
[358600498,1745299844224,-187.33258447,0.00022191,2]
[358600499,1745299844233,-500.0,0.00022191,2]
[358600500,1745299844243,-500.0,0.00022191,2]
[358600501,1745299844252,-503.90823399,0.00022191,2]
[358600502,1745299844262,-500.0,0.00022191,2]
[358600503,1745299844271,-500.0,0.00022191,2]
[358600504,1745299844281,-500.0,0.00022191,2]
[358600505,1745299844290,-500.0,0.00022191,2]
[358600506,1745299844300,-500.0,0.00022191,2]
[358600507,1745299844310,-500.0,0.00022191,2]
[358600508,1745299844319,-530.47171209,0.00022191,2]
[358600509,1745299844329,-500.0,0.00022191,2]
[358600510,1745299844339,-1096.3,0.00022191,2]
[358600511,1745299844348,-500.0,0.00022191,2]
[358600512,1745299844358,-500.0,0.00022191,2]
[358600513,1745299844367,-500.0,0.00022191,2]
[358600514,1745299844377,-500.0,0.00022191,2]
[358600515,1745299844387,-500.0,0.00022191,2]
[358600516,1745299844397,-500.0,0.00022191,2]
[358600517,1745299844406,-500.0,0.00022191,2]
[358600518,1745299844416,-501.66132718,0.00022191,2]
[358600519,1745299844430,-509.64213471,0.00022191,2]
[358600520,1745299844440,-500.0,0.00022191,2]
[358600521,1745299844450,-500.0,0.00022191,2]
[358600522,1745299844459,-500.0,0.00022191,2]
[358600523,1745299844470,-500.0,0.00022191,2]
[358600524,1745299844480,-500.0,0.00022191,2]
[358600525,1745299844489,-500.0,0.00022191,2]
[358600526,1745299844499,-500.0,0.00022191,2]
[358600527,1745299844509,-500.0,0.00022191,2]
[358600528,1745299844518,-500.0,0.00022191,2]
[358600529,1745299844527,-678.26,0.00022191,2]
[358600530,1745299844536,-500.0,0.00022191,2]
[358600531,1745299844545,-306.770633,0.00022191,2]
[358600532,1745299844835,-500.0,0.00021917,2]
[358600533,1745299844845,-251.18808791,0.00021917,2]
[358600534,1745299844856,-248.81191209,0.00021917,2]
[358600535,1745299844866,-500.0,0.00021917,2]
[358600536,1745299844875,-193.229367,0.00022191,2]
[358600537,1745299844885,-500.0,0.00022191,2]
[358600538,1745299844894,-500.0,0.00022191,2]
[358600539,1745299844903,-558.96151896,0.00022191,2]
[358600540,1745299844913,-500.0,0.00022191,2]
[358600541,1745299844922,-637.89,0.00022191,2]
[358600542,1745299844931,-500.0,0.00022191,2]
[358600543,1745299845014,-500.0,0.00022191,2]
[358600544,1745299845024,-500.0,0.00022191,2]
[358600545,1745299845033,-500.0,0.00022191,2]
[358600546,1745299845043,-151.0,0.00022191,7]
[358600547,1745299845052,-248.71495688,0.00022191,2]
[358600548,1745299845062,-500.0,0.00022191,2]
[358600549,1745299845072,-500.0,0.00022191,2]
[358600550,1745299845081,-306.82657564,0.00022191,2]
[358600551,1745299845090,-500.0,0.00022191,2]
[358600552,1745299845100,-524.91891596,0.00022191,2]
[358600553,1745299845109,-500.0,0.00022191,2]
[358600554,1745299845118,-500.0,0.00022191,2]
[358600555,1745299845128,-500.0,0.00022191,2]
[358600556,1745299845137,-500.0,0.00022191,2]
[358600557,1745299845146,-500.0,0.00022191,2]
[358600558,1745299845155,-503.47473972,0.00022191,2]
[358600559,1745299845165,-500.0,0.00022191,2]
[358600560,1745299845174,-745.15,0.00022191,2]
[358600561,1745299845183,-500.0,0.00022191,2]
[358600562,1745299845193,-500.0,0.00022191,2]
[358600563,1745299845202,-304.53530716,0.00022191,2]
[358600564,1745299845211,-500.0,0.00022191,2]
[358600565,1745299845221,-500.0,0.00022191,2]
[358600566,1745299845230,-500.0,0.00022191,2]
[358600567,1745299845239,-500.0,0.00022191,2]
[358600568,1745299845249,-505.59140785,0.00022191,2]
[358600569,1745299845258,-500.0,0.00022191,2]
[358600571,1745299845268,-500.0,0.00022191,2]
[358600573,1745299845277,-500.0,0.00022191,2]
[358600574,1745299845285,-500.0,0.00022191,2]
[358600576,1745299845295,-507.25753833,0.00022191,2]
[358600578,1745299845304,-500.0,0.00022191,2]
[358600579,1745299845315,-169.9769405,0.00022191,2]
[358600580,1745299845326,-500.0,0.00022191,2]
[358600581,1745299845335,-594.93,0.00022191,2]
[358600582,1745299845346,-531.16405092,0.00022191,2]
[358600583,1745299845356,-548.04,0.00022191,2]
[358600584,1745299845366,-506.47111489,0.00022191,2]
[358600585,1745299845376,-500.0,0.00022191,2]
[358600586,1745299845384,-500.0,0.00022191,2]
[358600587,1745299845392,-500.0,0.00022191,2]
[358600588,1745299845401,-151.0,0.00022191,7]
[358600589,1745299845410,-500.0,0.00022191,2]
[358600590,1745299845421,-239.16673546,0.00022191,2]
[358600591,1745299845433,-500.0,0.00022191,2]
[358600592,1745299845443,-154.693783,0.00022191,7]
[358600593,1745299845452,-610.45,0.00022191,2]
[358600594,1745299845462,-500.0,0.00022191,2]
[358600595,1745299845474,-546.98,0.00022191,2]
[358600596,1745299845483,-500.0,0.00022191,2]
[358600597,1745299845492,-500.0,0.00022191,2]
[358600598,1745299845502,-500.0,0.00022191,2]
[358600599,1745299845513,-500.0,0.00022191,2]
[358600600,1745299845522,-500.0,0.00022191,2]
[358600601,1745299845531,-500.0,0.00022191,2]
[358600602,1745299845541,-500.0,0.00022191,2]
[358600603,1745299845550,-500.0,0.00022191,2]
[358600604,1745299845560,-500.0,0.00022191,2]
[358600605,1745299845569,-500.0,0.00022191,2]
[358600606,1745299845580,-500.0,0.00022191,2]
[358600607,1745299845590,-500.0,0.00022191,2]
[358600608,1745299845600,-500.0,0.00022191,2]
[358600609,1745299845609,-500.0,0.00022191,2]
[358600610,1745299845619,-506.33934138,0.00022191,2]
[358600611,1745299845628,-500.0,0.00022191,2]
[358600612,1745299845637,-500.0,0.00022191,2]
[358600613,1745299845647,-503.38816111,0.00022191,2]
[358600614,1745299845656,-500.0,0.00022191,2]
[358600615,1745299845666,-500.0,0.00022191,2]
[358600616,1745299845675,-151.0,0.00022191,7]
[358600617,1745299845684,-538.66963131,0.00022191,2]
[358600618,1745299845694,-151.0,0.00022191,7]
[358600619,1745299845703,-500.0,0.00022191,2]
[358600620,1745299845712,-511.24805889,0.00022191,2]
[358600621,1745299845721,-500.0,0.00022191,2]
[358600623,1745299845731,-500.0,0.00022191,2]